fUSD/lending_fUSD_20240301
["ID","MTS","AMOUNT","RATE_DAILY","PERIOD"]
[315933721,1709291069264,-774.52,0.00021917,2]
[315933722,1709291069296,-500.0,0.00021917,2]
[315933723,1709291069326,-500.0,0.00021917,2]
[315933724,1709291069355,-500.0,0.00021917,2]
[315933725,1709291069385,-611.96,0.00021917,2]
[315933726,1709291069415,-2276.01,0.00021917,2]
[315933727,1709291069447,-576.85,0.00021917,2]
[315933728,1709291069476,-500.0,0.00021917,2]
[315933729,1709291069503,-500.0,0.00021917,2]
[315933730,1709291069532,-500.0,0.00021917,2]
[315933731,1709291069559,-691.99,0.00021917,2]
[315933732,1709291069593,-1295.44,0.00021917,2]
[315933733,1709291069621,-1172.52,0.00021917,2]
[315933734,1709291069650,-500.0,0.00021917,2]
[315933735,1709291069679,-500.0,0.00021917,2]
[315933736,1709291069707,-500.0,0.00021917,2]
[315933737,1709291069735,-1747.87,0.00021917,2]
[315933738,1709291069762,-500.0,0.00021917,2]
[315933739,1709291069790,-9466.13,0.00021917,2]
[315933740,1709291069818,-505.42,0.00021917,2]
[315933741,1709291069846,-729.46,0.00021917,2]
[315933742,1709291069874,-673.16,0.00021917,2]
[315933743,1709291069902,-4640.02,0.00021917,2]
[315933744,1709291069931,-887.34,0.00021917,2]
[315933745,1709291069957,-500.0,0.00021917,2]
[315933746,1709291069985,-500.0,0.00021917,2]
[315933747,1709291070012,-1849.78,0.00021917,2]
[315933748,1709291070039,-500.0,0.00021917,2]
[315933749,1709291070068,-500.0,0.00021917,2]
[315933750,1709291070098,-500.0,0.00021917,2]
[315933751,1709291070126,-1101.18,0.00021917,2]
[315933752,1709291070155,-500.0,0.00021917,2]
[315933753,1709291070185,-705.95,0.00021917,2]
[315933754,1709291070212,-500.0,0.00021917,2]
[315933755,1709291070240,-632.22,0.00021917,2]
[315933756,1709291070269,-546.66,0.00021917,2]
[315933757,1709291070299,-18660.95,0.00021917,2]
[315933758,1709291070326,-500.0,0.00021917,2]
[315933759,1709291070353,-2090.41,0.00021917,2]
[315933760,1709291070380,-519.3,0.00021917,2]
[315933761,1709291070406,-500.0,0.00021917,2]
[315933762,1709291070435,-1254.69,0.00021917,2]
[315933763,1709291070890,-500.0,0.00021917,2]
[315933764,1709291071064,-812.02,0.00021917,2]
[315933765,1709291071088,-500.0,0.00021917,2]
[315933766,1709291071117,-416.41433065,0.00021917,2]
[315933767,1709291071837,-307.60566935,0.00021917,2]
[315933768,1709291071863,-1776.79,0.00021917,2]
[315933769,1709291071886,-500.0,0.00021917,2]
[315933770,1709291071910,-2155.76,0.00021917,2]
[315933771,1709291071937,-11466.31,0.00021917,2]
[315933772,1709291071964,-1780.02,0.00021917,2]
[315933773,1709291071987,-500.0,0.00021917,2]
[315933774,1709291072011,-500.0,0.00021917,2]
[315933775,1709291072034,-500.0,0.00021917,2]
[315933776,1709291072058,-1010.27,0.00021917,2]
[315933777,1709291072083,-548.54,0.00021917,2]
[315933778,1709291072110,-1642.17,0.00021917,2]
[315933779,1709291072135,-500.0,0.00021917,2]
[315933780,1709291072159,-999.5,0.00021917,2]
[315933781,1709291072186,-500.0,0.00021917,2]
[315933782,1709291072212,-1349.79,0.00021917,2]
[315933783,1709291072237,-500.0,0.00021917,2]
[315933784,1709291072261,-551.07,0.00021917,2]
[315933785,1709291072287,-500.0,0.00021917,2]
[315933786,1709291072311,-500.0,0.00021917,2]
[315933787,1709291072336,-500.0,0.00021917,2]
[315933788,1709291072361,-1266.98,0.00021917,2]
[315933789,1709291072386,-500.0,0.00021917,2]
[315933790,1709291072411,-638.93673978,0.00021917,2]
[315933791,1709291072436,-3581.95,0.00021917,2]
[315933792,1709291072460,-500.0,0.00021917,2]
[315933793,1709291072484,-500.0,0.00021917,2]
[315933794,1709291072507,-1152.47,0.00021917,2]
[315933795,1709291072531,-600.7,0.00021917,2]
[315933796,1709291072554,-845.52,0.00021917,2]
[315933797,1709291072577,-1328.56,0.00021917,2]
[315933798,1709291072601,-500.0,0.00021917,2]
[315933799,1709291072626,-500.0,0.00021917,2]
[315933800,1709291072650,-540.64,0.00021917,2]
[315933801,1709291072675,-500.0,0.00021917,2]
[315933802,1709291072698,-500.0,0.00021917,2]
[315933803,1709291072723,-1435.09,0.00021917,2]
[315933804,1709291072745,-500.0,0.00021917,2]
[315933805,1709291072769,-150.0,0.00021917,2]
[315933806,1709291072793,-500.0,0.00021917,2]
[315933807,1709291072817,-383.05,0.00021917,2]
[315933808,1709291072842,-500.0,0.00021917,2]
[315933809,1709291072866,-813.09,0.00021917,2]
[315933810,1709291072890,-500.0,0.00021917,2]
[315933811,1709291072913,-1540.01,0.00021917,2]
[315933812,1709291072936,-500.0,0.00021917,2]
[315933813,1709291072962,-153.09,0.00021918,2]
[315933814,1709291072985,-152.0,0.00021921,2]
[315933815,1709291073008,-979.0,0.00021921,2]
[315933816,1709291073032,-226.0,0.00021921,2]
[315933817,1709291073057,-796.81,0.00021982,2]
[315933818,1709291073121,-1000.0,0.00021999,2]
[315933819,1709291073147,-400.0,0.00022,3]
[315933820,1709291073170,-47428.27759087,0.00022,2]
[315933821,1709291147006,-408.7844706,0.00020999,2]
[315933822,1709291147033,-169.05413488,0.00021,2]
[315933823,1709291147058,-554.26,0.0002116,2]
[315933824,1709291147082,-156.47,0.00021166,2]
[315933825,1709291147107,-12067.73,0.00021177,2]
[315933826,1709291147134,-794.53,0.00021917,2]
[315933827,1709291147159,-500.0,0.00021917,2]
[315933828,1709291147184,-500.0,0.00021917,2]
[315933829,1709291147210,-500.0,0.00021917,2]
[315933830,1709291147238,-557.43,0.00021917,2]
[315933831,1709291147263,-500.0,0.00021917,2]
[315933832,1709291147288,-500.0,0.00021917,2]
[315933833,1709291147313,-500.0,0.00021917,2]
[315933834,1709291147338,-1113.42,0.00021917,2]
[315933835,1709291147364,-2290.31,0.00021917,2]
[315933836,1709291147389,-500.0,0.00021917,2]
[315933837,1709291147414,-570.93,0.00021917,2]
[315933838,1709291147437,-1691.99,0.00021917,2]
[315933839,1709291147461,-500.0,0.00021917,2]
[315933840,1709291147486,-7505.16,0.00021917,2]
[315933841,1709291147510,-500.0,0.00021917,2]
[315933842,1709291147534,-612.32,0.00021917,2]
[315933843,1709291147558,-824.58,0.00021917,2]
[315933844,1709291147581,-954.47,0.00021917,2]
[315933845,1709291147605,-500.0,0.00021917,2]
[315933846,1709291147628,-500.0,0.00021917,2]
[315933847,1709291147651,-500.0,0.00021917,2]
[315933848,1709291147727,-1223.07,0.00021917,2]
[315933849,1709291147751,-500.0,0.00021917,2]
[315933850,1709291147775,-627.81,0.00021917,2]
[315933851,1709291147799,-798.56,0.00021917,2]
[315933852,1709291147823,-1591.18,0.00021917,2]
[315933853,1709291147846,-500.0,0.00021917,2]
[315933854,1709291147870,-773.43,0.00021917,2]
[315933855,1709291147893,-500.0,0.00021917,2]
[315933856,1709291147917,-3033.94,0.00021917,2]
[315933857,1709291147942,-500.0,0.00021917,2]
[315933858,1709291147965,-681.4,0.00021917,2]
[315933859,1709291147988,-500.0,0.00021917,2]
[315933860,1709291148011,-500.0,0.00021917,2]
[315933861,1709291148035,-500.0,0.00021917,2]
[315933862,1709291148059,-733.85,0.00021917,2]
[315933863,1709291148083,-1309.14,0.00021917,2]
[315933864,1709291148107,-1217.7,0.00021917,2]
[315933865,1709291148134,-973.87,0.00021917,2]
[315933866,1709291148159,-500.0,0.00021917,2]
[315933867,1709291148182,-4544.11,0.00021917,2]
[315933868,1709291148206,-553.09,0.00021917,2]
[315933869,1709291148229,-500.0,0.00021917,2]
[315933870,1709291148253,-500.0,0.00021917,2]
[315933871,1709291148277,-500.0,0.00021917,2]
[315933872,1709291148300,-500.0,0.00021917,2]
[315933873,1709291148324,-500.0,0.00021917,2]
[315933874,1709291148352,-500.0,0.00021917,2]
[315933875,1709291148376,-1568.73,0.00021917,2]
[315933876,1709291148399,-500.0,0.00021917,2]
[315933877,1709291148423,-675.7,0.00021917,2]
[315933878,1709291148446,-500.0,0.00021917,2]
[315933879,1709291148469,-545.69,0.00021917,2]
[315933880,1709291148493,-3751.39,0.00021917,2]
[315933881,1709291148517,-811.49,0.00021917,2]
[315933882,1709291148544,-6437.93,0.00021917,2]
[315933883,1709291148567,-500.0,0.00021917,2]
[315933884,1709291148590,-500.0,0.00021917,2]
[315933885,1709291148615,-729.87,0.00021917,2]
[315933886,1709291148639,-500.0,0.00021917,2]
[315933887,1709291148663,-2062.18,0.00021917,2]
[315933888,1709291148686,-500.0,0.00021917,2]
[315933889,1709291148710,-500.0,0.00021917,2]
[315933890,1709291148735,-651.21,0.00021917,2]
[315933891,1709291148762,-742.25,0.00021917,2]
[315933892,1709291148788,-4485.14,0.00021917,2]
[315933893,1709291148812,-797.11,0.00021917,2]
[315933894,1709291148835,-1069.78,0.00021917,2]
[315933895,1709291148859,-5799.88,0.00021917,2]
[315933896,1709291148884,-5039.06139452,0.00021917,2]
[315933897,1709291170119,-170.28,0.00021427,10]
[315933898,1709291170146,-300.0,0.00021916,2]
[315933899,1709291170171,-6878.61860548,0.00021917,2]
[315933900,1709291170195,-500.0,0.00021917,2]
[315933901,1709291170223,-500.0,0.00021917,2]
[315933902,1709291170248,-795.61,0.00021917,2]
[315933903,1709291170273,-500.0,0.00021917,2]
[315933904,1709291170299,-1123.67,0.00021917,2]
[315933905,1709291170323,-1600.76,0.00021917,2]
[315933906,1709291170348,-2087.74,0.00021917,2]
[315933907,1709291170372,-1557.52,0.00021917,2]
[315933908,1709291170397,-830.45,0.00021917,2]
[315933909,1709291170422,-1835.78,0.00021917,2]
[315933910,1709291170508,-500.0,0.00021917,2]
[315933911,1709291170532,-500.0,0.00021917,2]
[315933912,1709291170556,-699.06,0.00021917,2]
[315933913,1709291170580,-1313.51,0.00021917,2]
[315933914,1709291170604,-1792.83,0.00021917,2]
[315933915,1709291170627,-500.0,0.00021917,2]
[315933916,1709291170651,-1074.65,0.00021917,2]
[315933917,1709291170676,-831.43,0.00021917,2]
[315933918,1709291170699,-500.0,0.00021917,2]
[315933919,1709291170723,-769.41,0.00021917,2]
[315933920,1709291170747,-751.7,0.00021917,2]
[315933921,1709291170773,-1695.63,0.00021917,2]
[315933922,1709291170797,-500.0,0.00021917,2]
[315933923,1709291170821,-500.0,0.00021917,2]
[315933924,1709291170844,-500.0,0.00021917,2]
[315933925,1709291170867,-552.48,0.00021917,2]
[315933926,1709291170890,-1241.46,0.00021917,2]
[315933927,1709291170915,-476.87,0.00021918,2]
[315933928,1709291170938,-40436.68842948,0.00022,2]
[315933929,1709291170962,-4000.0,0.00022,2]
[315933930,1709291170986,-476.87,0.00022033,2]
[315933931,1709291171015,-227.17,0.0002208,2]
[315933932,1709291171037,-227.17,0.00022081,2]
[315933933,1709291171060,-492.6083419,0.00022089,2]
[315933934,1709291171084,-500.0,0.0002209,2]
[315933935,1709291171108,-20260.03462314,0.0002209,2]
[315933936,1709291191288,-151.22823212,0.00021239,2]
[315933937,1709291222555,-677.28,0.00019314,2]
[315933938,1709291222579,-98.77176788,0.00021239,2]
[315933939,1709291222603,-15188.753734,0.00021378,2]
[315933940,1709291222627,-677.28,0.00021578,2]
[315933941,1709291222651,-1248.13680142,0.00021915,2]
[315933942,1709291222674,-5753.14059764,0.00021916,2]
[315933943,1709291222698,-324.17068188,0.00021916,2]
[315933944,1709291222720,-1009.34064671,0.00021916,2]
[315933945,1709291222743,-5490.61625916,0.00021916,2]
[315933946,1709291222766,-685.0762119,0.00021916,2]
[315933947,1709291222789,-404.92311093,0.00021916,2]
[315933948,1709291223157,-558.68302033,0.00021916,2]
[315933949,1709291223187,-841.83,0.00021917,2]
[315933950,1709291223216,-500.0,0.00021917,2]
[315933951,1709291223242,-17883.41,0.00021917,2]
[315933952,1709291223267,-500.0,0.00021917,2]
[315933953,1709291223291,-500.0,0.00021917,2]
[315933954,1709291223316,-500.0,0.00021917,2]
[315933955,1709291223346,-3510.23,0.00021917,2]
[315933956,1709291223373,-8135.05,0.00021917,2]
[315933957,1709291223399,-1728.78,0.00021917,2]
[315933958,1709291223425,-500.0,0.00021917,2]
[315933959,1709291223451,-2513.34,0.00021917,2]
[315933960,1709291223476,-500.0,0.00021917,2]
[315933961,1709291223501,-500.0,0.00021917,2]
[315933962,1709291223526,-538.16,0.00021917,2]
[315933963,1709291223551,-500.0,0.00021917,2]
[315933964,1709291223577,-935.19,0.00021917,2]
[315933965,1709291223602,-570.11,0.00021917,2]
[315933966,1709291223627,-6127.03,0.00021917,2]
[315933967,1709291223653,-1667.0,0.00021917,2]
[315933968,1709291223683,-2181.17,0.00021917,2]
[315933969,1709291223709,-561.17,0.00021917,2]
[315933970,1709291223738,-500.0,0.00021917,2]
[315933971,1709291223763,-1245.36,0.00021917,2]
[315933972,1709291223790,-9071.71,0.00021917,2]
[315933973,1709291223820,-500.0,0.00021917,2]
[315933974,1709291223859,-500.0,0.00021917,2]
[315933975,1709291223887,-957.86,0.00021917,2]
[315933976,1709291223913,-500.0,0.00021917,2]
[315933977,1709291223938,-500.0,0.00021917,2]
[315933978,1709291223963,-500.0,0.00021917,2]
[315933979,1709291223987,-500.0,0.00021917,2]
[315933980,1709291224013,-759.42,0.00021917,2]
[315933981,1709291224038,-528.11,0.00021917,2]
[315933982,1709291224063,-500.0,0.00021917,2]
[315933983,1709291224088,-128.89716815,0.00021917,2]
[315933984,1709291224324,-207.41655153,0.00021915,2]
[315933985,1709291224351,-1038.80283185,0.00021917,2]
[315933986,1709291224377,-500.0,0.00021917,2]
[315933987,1709291224403,-500.0,0.00021917,2]
[315933988,1709291224429,-500.0,0.00021917,2]
[315933989,1709291224454,-528.92,0.00021917,2]
[315933990,1709291224478,-500.0,0.00021917,2]
[315933991,1709291224503,-523.89,0.00021917,2]
[315933992,1709291224533,-1675.05,0.00021917,2]
[315933993,1709291224559,-585.22,0.00021917,2]
[315933994,1709291224584,-1495.89,0.00021917,2]
[315933995,1709291224609,-1573.74,0.00021917,2]
[315933996,1709291224633,-9980.0,0.00022,2]
[315933997,1709291224658,-21166.80111274,0.00022,2]
[315933998,1709291224684,-57441.27807686,0.0002209,2]
[315933999,1709291224709,-1782.99142702,0.00022091,2]
[315934000,1709291224864,-2971.30394174,0.00021915,2]
[315934001,1709291224890,-97028.69605826,0.00022091,2]
[315934002,1709291224920,-100000.0,0.00022091,2]
[315934003,1709291225008,-34834.87891472,0.00022091,2]
[315934004,1709291225034,-500.0,0.00022091,2]
[315934005,1709291225060,-808.79294779,0.00022091,2]
[315934006,1709291225084,-176.22606532,0.00022091,2]
[315934007,1709291225111,-3919.4355359,0.00022119,2]
[315934008,1709291225142,-200.0,0.00022122,2]
[315934009,1709291225170,-200.0,0.00022135,2]
[315934010,1709291225199,-476.87,0.00022149,2]
[315934011,1709291225239,-334.4,0.00022164,2]
[315934012,1709291225268,-800.0,0.00022164,2]
[315934013,1709291225438,-499.99,0.00022164,2]
[315934014,1709291225464,-176.57560379,0.00022189,2]
[315934015,1709291225493,-167.1188897,0.00022189,2]
[315934016,1709291225522,-500.0,0.0002219,2]
[315934017,1709291225548,-1481.14,0.0002219,2]
[315934018,1709291225576,-738.56,0.0002219,2]
[315934019,1709291225602,-562.06,0.0002219,2]
[315934020,1709291225628,-592.26,0.0002219,2]
[315934021,1709291225655,-500.0,0.0002219,2]
[315934022,1709291225686,-769.53,0.0002219,2]
[315934023,1709291225713,-500.0,0.0002219,2]
[315934024,1709291225740,-861.56,0.0002219,2]
[315934025,1709291225767,-500.0,0.0002219,2]
[315934026,1709291225795,-500.0,0.0002219,2]
[315934027,1709291225824,-500.0,0.0002219,2]
[315934028,1709291225852,-634.33,0.0002219,2]
[315934029,1709291225879,-663.16,0.0002219,2]
[315934030,1709291225906,-234.23,0.0002219,3]
[315934031,1709291225932,-1471.38350424,0.00022191,2]
[315934032,1709291225958,-500.0,0.00022191,2]
[315934033,1709291225985,-500.0,0.00022191,2]
[315934034,1709291226015,-500.0,0.00022191,2]
[315934035,1709291226041,-500.0,0.00022191,2]
[315934036,1709291226068,-500.0,0.00022191,2]
[315934037,1709291226095,-583.78,0.00022191,2]
[315934038,1709291226121,-269.49121608,0.00022191,2]
[315934039,1709291226149,-607.46828046,0.00022191,2]
[315934040,1709291226176,-500.0,0.00022191,2]
[315934041,1709291226204,-645.89,0.00022191,2]
[315934042,1709291226231,-582.79,0.00022191,2]
[315934043,1709291226258,-500.0,0.00022191,2]
[315934044,1709291226285,-500.0,0.00022191,2]
[315934045,1709291226313,-500.0,0.00022191,2]
[315934046,1709291226341,-500.0,0.00022191,2]
[315934047,1709291226373,-509.83,0.00022191,2]
[315934048,1709291226402,-500.0,0.00022191,2]
[315934049,1709291226431,-500.0,0.00022191,2]
[315934050,1709291226459,-526.07,0.00022191,2]
[315934051,1709291226487,-500.0,0.00022191,2]
[315934052,1709291226517,-500.0,0.00022191,2]
[315934053,1709291226545,-500.0,0.00022191,2]
[315934054,1709291226575,-500.0,0.00022191,2]
[315934055,1709291226602,-500.0,0.00022191,2]
[315934056,1709291226629,-500.0,0.00022191,2]
[315934057,1709291226655,-500.0,0.00022191,2]
[315934058,1709291226683,-687.33,0.00022191,2]
[315934059,1709291226712,-500.0,0.00022191,2]
[315934060,1709291226738,-500.0,0.00022191,2]
[315934061,1709291226765,-500.0,0.00022191,2]
[315934062,1709291226792,-500.0,0.00022191,2]
[315934063,1709291226819,-706.63,0.00022191,2]
[315934064,1709291226845,-500.0,0.00022191,2]
[315934065,1709291226873,-500.0,0.00022191,2]
[315934066,1709291226900,-500.0,0.00022191,2]
[315934067,1709291226927,-596.48,0.00022191,2]
[315934068,1709291226954,-500.0,0.00022191,2]
[315934069,1709291226979,-500.0,0.00022191,2]
[315934070,1709291227005,-500.0,0.00022191,2]
[315934071,1709291227030,-500.0,0.00022191,2]
[315934072,1709291227056,-500.0,0.00022191,2]
[315934073,1709291227081,-500.0,0.00022191,2]
[315934074,1709291227108,-614.3,0.00022191,2]
[315934075,1709291227136,-500.0,0.00022191,2]
[315934076,1709291227163,-500.0,0.00022191,2]
[315934077,1709291227189,-500.0,0.00022191,2]
[315934078,1709291227215,-500.0,0.00022191,2]
[315934079,1709291227242,-685.64,0.00022191,2]
[315934080,1709291227268,-500.0,0.00022191,2]
[315934081,1709291227295,-505.92,0.00022191,2]
[315934082,1709291227324,-500.0,0.00022191,2]
[315934083,1709291227350,-500.0,0.00022191,2]
[315934084,1709291227375,-500.0,0.00022191,2]
[315934085,1709291227401,-500.0,0.00022191,2]
[315934086,1709291227427,-500.0,0.00022191,2]
[315934087,1709291227452,-731.41,0.00022191,2]
[315934088,1709291227479,-500.0,0.00022191,2]
[315934089,1709291227505,-500.0,0.00022191,2]
[315934090,1709291227533,-500.0,0.00022191,2]
[315934091,1709291227566,-517.33480622,0.00022191,2]
[315934092,1709291227592,-542.99,0.00022191,2]
[315934093,1709291227619,-500.0,0.00022191,2]
[315934094,1709291227644,-996.71,0.00022191,2]
[315934095,1709291227670,-500.0,0.00022191,2]
[315934096,1709291227694,-567.32,0.00022191,2]
[315934097,1709291227719,-615.88,0.00022191,2]
[315934098,1709291227743,-500.0,0.00022191,2]
[315934099,1709291227767,-500.0,0.00022191,2]
[315934100,1709291227790,-500.0,0.00022191,2]
[315934101,1709291227815,-863.93,0.00022191,2]
[315934102,1709291227839,-500.0,0.00022191,2]
[315934103,1709291227865,-500.0,0.00022191,2]
[315934104,1709291227890,-500.0,0.00022191,2]
[315934105,1709291227914,-500.0,0.00022191,2]
[315934106,1709291227938,-500.0,0.00022191,2]
[315934107,1709291227962,-500.0,0.00022191,2]
[315934108,1709291227987,-575.12,0.00022191,2]
[315934109,1709291228011,-510.42,0.00022191,2]
[315934110,1709291228036,-812.76,0.00022191,2]
[315934111,1709291228061,-500.0,0.00022191,2]
[315934112,1709291228084,-500.0,0.00022191,2]
[315934113,1709291228108,-500.0,0.00022191,2]
[315934114,1709291228136,-507.47,0.00022191,2]
[315934115,1709291228164,-500.0,0.00022191,2]
[315934116,1709291228190,-500.0,0.00022191,2]
[315934117,1709291228215,-500.0,0.00022191,2]
[315934118,1709291228240,-134.53423578,0.00022191,2]
[315934119,1709291228351,-365.46576422,0.00022191,2]
[315934120,1709291228377,-658.98,0.00022191,2]
[315934121,1709291228403,-500.0,0.00022191,2]
[315934122,1709291228428,-500.0,0.00022191,2]
[315934123,1709291228452,-500.0,0.00022191,2]
[315934124,1709291228477,-500.0,0.00022191,2]
[315934125,1709291228502,-500.0,0.00022191,2]
[315934126,1709291228527,-500.0,0.00022191,2]
[315934127,1709291228551,-500.0,0.00022191,2]
[315934128,1709291228734,-696.86,0.00022191,2]
[315934129,1709291228759,-500.0,0.00022191,2]
[315934130,1709291228784,-500.0,0.00022191,2]
[315934131,1709291228810,-500.0,0.00022191,2]
[315934132,1709291228834,-500.0,0.00022191,2]
[315934133,1709291228859,-500.0,0.00022191,2]
[315934134,1709291228884,-500.0,0.00022191,2]
[315934135,1709291228908,-500.0,0.00022191,2]
[315934136,1709291228933,-500.0,0.00022191,2]
[315934137,1709291228957,-500.0,0.00022191,2]
[315934138,1709291228981,-500.0,0.00022191,2]
[315934139,1709291229006,-1038.98,0.00022191,2]
[315934140,1709291229030,-500.0,0.00022191,2]
[315934141,1709291229055,-500.0,0.00022191,2]
[315934142,1709291229081,-500.0,0.00022191,2]
[315934143,1709291229105,-500.0,0.00022191,2]
[315934144,1709291229130,-500.0,0.00022191,2]
[315934145,1709291229156,-500.0,0.00022191,2]
[315934146,1709291229180,-346.69504482,0.00022191,2]
[315934147,1709291229205,-500.0,0.00022191,2]
[315934148,1709291229230,-500.0,0.00022191,2]
[315934149,1709291229254,-500.0,0.00022191,2]
[315934150,1709291229279,-500.0,0.00022191,2]
[315934151,1709291229304,-500.0,0.00022191,2]
[315934152,1709291229333,-587.49,0.00022191,2]
[315934153,1709291229359,-500.0,0.00022191,2]
[315934154,1709291229386,-500.0,0.00022191,2]
[315934155,1709291229410,-500.0,0.00022191,2]
[315934156,1709291229434,-500.0,0.00022191,2]
[315934157,1709291229459,-500.0,0.00022191,2]
[315934158,1709291229483,-500.0,0.00022191,2]
[315934159,1709291229507,-500.0,0.00022191,2]
[315934160,1709291229531,-500.0,0.00022191,2]
[315934161,1709291229556,-500.0,0.00022191,2]
[315934162,1709291229582,-500.0,0.00022191,2]
[315934163,1709291229606,-500.0,0.00022191,2]
[315934164,1709291229631,-816.26,0.00022191,2]
[315934165,1709291229655,-500.0,0.00022191,2]
[315934166,1709291229678,-500.0,0.00022191,2]
[315934167,1709291229701,-500.0,0.00022191,2]
[315934168,1709291229726,-500.0,0.00022191,2]
[315934169,1709291229752,-163.09055273,0.00022191,2]
[315934170,1709291229778,-500.0,0.00022191,2]
[315934171,1709291229805,-500.0,0.00022191,2]
[315934172,1709291229834,-933.91,0.00022191,2]
[315934173,1709291229860,-514.36,0.00022191,2]
[315934174,1709291229884,-500.0,0.00022191,2]
[315934175,1709291229909,-500.0,0.00022191,2]
[315934176,1709291229933,-500.0,0.00022191,2]
[315934177,1709291229958,-500.0,0.00022191,2]
[315934178,1709291229983,-500.0,0.00022191,2]
[315934179,1709291230006,-500.0,0.00022191,2]
[315934180,1709291230037,-633.02,0.00022191,2]
[315934181,1709291230062,-588.4,0.00022191,2]
[315934182,1709291230086,-500.0,0.00022191,2]
[315934183,1709291230109,-500.0,0.00022191,2]
[315934184,1709291230134,-500.0,0.00022191,2]
[315934185,1709291230160,-500.0,0.00022191,2]
[315934186,1709291230185,-500.0,0.00022191,2]
[315934187,1709291230209,-636.57,0.00022191,2]
[315934188,1709291230235,-500.0,0.00022191,2]
[315934189,1709291230260,-500.0,0.00022191,2]
[315934190,1709291230284,-500.0,0.00022191,2]
[315934191,1709291230311,-500.0,0.00022191,2]
[315934192,1709291230336,-611.96,0.00022191,2]
[315934193,1709291230361,-500.0,0.00022191,2]
[315934194,1709291230391,-500.0,0.00022191,2]
[315934195,1709291230417,-500.0,0.00022191,2]
[315934196,1709291230441,-500.0,0.00022191,2]
[315934197,1709291230466,-500.0,0.00022191,2]
[315934198,1709291230491,-673.16,0.00022191,2]
[315934199,1709291230516,-887.34,0.00022191,2]
[315934200,1709291230540,-500.0,0.00022191,2]
[315934201,1709291230568,-500.0,0.00022191,2]
[315934202,1709291230593,-500.0,0.00022191,2]
[315934203,1709291230618,-151.0,0.00022191,7]
[315934204,1709291230644,-500.0,0.00022191,2]
[315934205,1709291230671,-1101.18,0.00022191,2]
[315934206,1709291230700,-500.0,0.00022191,2]
[315934207,1709291230728,-705.95,0.00022191,2]
[315934208,1709291230755,-500.0,0.00022191,2]
[315934209,1709291230781,-632.22,0.00022191,2]
[315934210,1709291230806,-500.0,0.00022191,2]
[315934211,1709291230833,-2090.41,0.00022191,2]
[315934212,1709291230859,-519.3,0.00022191,2]
[315934213,1709291230887,-1254.69,0.00022191,2]
[315934214,1709291230911,-500.0,0.00022191,2]
[315934215,1709291230936,-812.02,0.00022191,2]
[315934216,1709291230962,-500.0,0.00022191,2]
[315934217,1709291230988,-1776.79,0.00022191,2]
[315934218,1709291231012,-500.0,0.00022191,2]
[315934219,1709291231038,-11466.31,0.00022191,2]
[315934220,1709291231064,-1780.02,0.00022191,2]